bitfinex/quotes_BTCUSD_20250422
["timestamp","ask_amount","ask_price","bid_price","bid_amount"]
[1745345691341,0.12472025,91205.0,91194.0,0.0111731]
[1745345691552,0.046,91204.0,91193.0,0.21931406]
[1745345691747,0.11375594,91203.0,91194.0,0.21931264]
[1745345692158,0.11375594,91203.0,91192.0,0.21931723]
[1745345692394,0.01096479,91201.0,91189.0,0.21932389]
[1745345692595,0.01096515,91198.0,91185.0,0.21933237]
[1745345692817,0.11375594,91197.0,91187.0,0.21932939]
[1745345693019,0.11375594,91197.0,91186.0,0.21932716]
[1745345693796,0.11375594,91197.0,91185.0,0.01082131]
[1745345693797,0.01096539,91196.0,91185.0,0.01082131]
[1745345694000,0.11375594,91195.0,91184.0,0.21933442]
[1745345694259,0.11375594,91195.0,91185.0,0.21933432]
[1745345694452,0.11375594,91195.0,91184.0,0.21933668]
[1745345694663,0.11375594,91195.0,91185.0,0.01118309]
[1745345694802,0.21931507,91193.0,91180.0,0.21934471]
[1745345695021,0.11375594,91192.0,91181.0,0.21934387]
[1745345695348,0.11375594,91192.0,91180.0,0.21934572]
[1745345695570,0.11375594,91192.0,91182.0,0.21934144]
[1745345695807,0.11375594,91192.0,91180.0,0.23031303]
[1745345695808,0.0931,91191.0,91180.0,0.01412505]
[1745345696021,0.23029618,91187.0,91180.0,0.01412505]
[1745345696230,0.01096659,91186.0,91176.0,0.000425]
[1745345696440,0.23029428,91188.0,91176.0,0.000425]
[1745345696863,0.11375594,91190.0,91176.0,0.2197786]
[1745345697005,0.12472205,91190.0,91176.0,0.2197786]
[1745345697284,0.11375594,91190.0,91178.0,0.21935102]
[1745345697608,0.11375594,91190.0,91186.0,0.21933184]
[1745345697806,0.01096443,91204.0,91186.0,0.21933149]
[1745345697807,0.001,91188.0,91186.0,0.21933149]
[1745345698007,0.001,91188.0,91183.0,0.01096695]
[1745345698182,0.001,91188.0,91181.0,0.01096719]
[1745345698183,0.001,91187.0,91184.0,0.00219311]
[1745345698405,0.001,91188.0,91184.0,0.00219311]
[1745345699034,0.01096575,91193.0,91184.0,0.00219311]
[1745345699234,0.23027464,91196.0,91183.0,0.01096695]
[1745345699406,0.001,91187.0,91182.0,0.2303086]
[1745345699612,0.001,91190.0,91182.0,0.2303086]
[1745345699820,0.001,91188.0,91182.0,0.01096707]
[1745345700275,0.001,91193.0,91182.0,0.23030754]
[1745345700482,0.01096587,91192.0,91178.0,0.01379823]
[1745345700689,0.0466,91181.0,91178.0,0.01379823]
[1745345700913,0.0466,91181.0,91171.0,0.005]
[1745345701075,0.0466,91181.0,91178.0,0.0141307]
[1745345701278,0.0466,91181.0,91171.0,0.005]
[1745345701279,0.01096743,91179.0,91171.0,0.005]
[1745345701608,0.33031365,91180.0,91171.0,0.005]
[1745345701954,0.1,91180.0,91171.0,0.005]
[1745345702164,0.1,91180.0,91176.0,0.01393515]
[1745345702387,0.1,91180.0,91176.0,0.01139279]
[1745345702736,0.001,91179.0,91177.0,0.0021934]
[1745345702948,0.11475594,91192.0,91180.0,0.23031283]
[1745345703155,0.1,91181.0,91180.0,0.23031283]
[1745345703580,0.1,91183.0,91182.0,0.21934153]
[1745345703783,0.41587392,91201.0,91187.0,0.01096647]
[1745345703995,0.1,91190.0,91187.0,0.21932486]
[1745345704209,0.1,91190.0,91188.0,0.21932605]
[1745345704403,0.1,91190.0,91188.0,0.21932551]
[1745345704609,0.1,91190.0,91188.0,0.2193271]
[1745345704888,0.1,91190.0,91189.0,0.21932469]
[1745345705299,0.101,91190.0,91189.0,0.21932469]
[1745345705645,0.1,91190.0,91189.0,0.12151776]
[1745345705855,0.101,91190.0,91189.0,0.12032469]
[1745345706068,0.001,91190.0,91189.0,0.12032469]
[1745345706278,9.64e-05,91201.0,91199.0,0.21930064]
[1745345706492,9.64e-05,91201.0,91197.0,0.23026972]
[1745345706707,9.64e-05,91201.0,91198.0,0.23026718]
[1745345706914,9.64e-05,91201.0,91198.0,0.01096515]
[1745345707124,9.64e-05,91201.0,91198.0,0.23026794]
[1745345708059,0.0010964,91201.0,91198.0,0.23126794]
[1745345708261,0.0010964,91201.0,91200.0,0.21929824]
[1745345708474,0.0020964,91201.0,91200.0,0.21929824]
[1745345709348,9.64e-05,91201.0,91200.0,0.21929824]
[1745345709552,0.0010964,91201.0,91200.0,0.21929824]
[1745345711153,0.0020964,91201.0,91200.0,0.22029824]
[1745345712533,0.0020964,91201.0,91200.0,0.001]
[1745345715115,0.0020964,91201.0,91200.0,0.22029824]
[1745345715797,0.0020964,91201.0,91200.0,0.001]
[1745345716403,0.0020964,91201.0,91200.0,0.22029824]
[1745345717051,0.0020964,91201.0,91200.0,0.001]
[1745345717527,0.0020964,91201.0,91200.0,0.22029824]
[1745345718641,0.0020964,91201.0,91200.0,0.22249076]
[1745345720105,0.0020964,91201.0,91200.0,0.3362467]
[1745345720351,0.0020964,91201.0,91200.0,0.33405418]
[1745345720827,0.0010964,91201.0,91200.0,0.33405418]
[1745345721071,0.0020964,91201.0,91200.0,0.33405418]
[1745345721277,0.0020964,91201.0,91200.0,0.43657418]
[1745345721278,0.0010964,91201.0,91200.0,0.43657418]
[1745345721495,0.0020964,91201.0,91200.0,0.32381824]
[1745345721698,0.0020964,91201.0,91200.0,0.22029824]
[1745345723052,0.0020964,91201.0,91200.0,0.22249068]
[1745345723268,0.0020964,91201.0,91200.0,0.22249069]
[1745345723499,0.0020964,91201.0,91200.0,0.22029824]
[1745345723774,0.0020964,91201.0,91200.0,0.33405418]
[1745345724628,0.0020964,91201.0,91200.0,0.22029824]
[1745345726436,0.0020964,91201.0,91200.0,0.33624666]
[1745345726636,0.0020964,91201.0,91200.0,0.33405418]
[1745345727400,0.0020964,91201.0,91200.0,0.22029824]
[1745345728108,0.0020964,91201.0,91200.0,0.21929824]
[1745345731591,0.0020964,91201.0,91199.0,0.19405341]
[1745345731793,0.0020964,91201.0,91200.0,0.21929824]
[1745345732018,0.0020964,91201.0,91199.0,0.16733544]
[1745345732223,0.0020964,91201.0,91200.0,0.21929824]
[1745345732767,0.0020964,91201.0,91197.0,0.23027047]
[1745345732973,0.0010964,91201.0,91199.0,0.21929971]
[1745345733181,9.64e-05,91201.0,91200.0,0.22149096]
[1745345733380,0.0010964,91201.0,91200.0,0.22149096]
[1745345733582,0.0020964,91201.0,91200.0,0.22149096]
[1745345734009,0.0010964,91201.0,91200.0,0.22149096]
[1745345734417,0.0010964,91201.0,91200.0,0.22249096]
[1745345734618,0.0020964,91201.0,91200.0,0.002]
[1745345735893,0.0020964,91201.0,91200.0,0.22129824]
[1745345736489,0.0472964,91201.0,91200.0,0.002]
[1745345737705,0.0950964,91201.0,91200.0,0.002]
[1745345738928,0.0020964,91201.0,91200.0,0.002]
[1745345739336,0.0020964,91201.0,91200.0,0.22129824]
[1745345739543,0.0020964,91201.0,91200.0,0.22349094]
[1745345741652,0.0020964,91201.0,91200.0,0.22129824]
[1745345743123,0.0020964,91201.0,91200.0,0.22349078]
[1745345744714,0.0020964,91201.0,91200.0,0.22129824]
[1745345746597,0.0020964,91201.0,91199.0,0.21929955]
[1745345746829,0.0020964,91201.0,91200.0,0.21929824]
[1745345747279,0.0020964,91201.0,91189.0,0.01096623]
[1745345747481,0.10416491,91200.0,91184.0,0.01096683]
[1745345747680,0.01096515,91198.0,91180.0,0.1034]
[1745345747892,0.01096527,91197.0,91182.0,0.01096707]
[1745345748279,0.00996515,91198.0,91184.0,0.01096683]
[1745345748485,0.00830718,91198.0,91189.0,0.001]
[1745345748646,0.01096503,91199.0,91189.0,0.001]
[1745345749253,0.21930459,91198.0,91189.0,0.001]
[1745345749468,0.01096503,91199.0,91189.0,0.001]
[1745345749672,0.3234637,91200.0,91189.0,0.001]
[1745345749895,0.10416491,91200.0,91185.0,0.23029954]
[1745345750099,0.10416491,91200.0,91187.0,0.01096647]
[1745345750316,0.001,91197.0,91187.0,0.01096647]
[1745345750547,0.01196503,91199.0,91185.0,0.01096671]
[1745345750790,0.23027146,91197.0,91182.0,0.23030748]
[1745345751016,0.001,91199.0,91186.0,0.01096659]
[1745345751213,0.10516491,91200.0,91186.0,0.23029807]
[1745345751426,0.10516491,91200.0,91187.0,0.01096647]
[1745345751556,0.10516491,91200.0,91186.0,0.23029807]
[1745345751557,0.11342364,91200.0,91186.0,0.23029807]
[1745345751761,0.10245873,91200.0,91186.0,0.01096659]
[1745345751965,0.10345873,91200.0,91186.0,0.01096659]
[1745345752165,0.10345873,91200.0,91187.0,0.01096647]
[1745345752391,0.10245873,91200.0,91187.0,0.01096647]
[1745345752838,0.001,91197.0,91186.0,0.01096659]
[1745345753013,0.001,91197.0,91185.0,0.23030058]
[1745345753221,0.01096503,91199.0,91186.0,0.01096659]
[1745345753355,0.11342364,91200.0,91186.0,0.01096659]
[1745345753555,0.11442364,91200.0,91186.0,0.01096659]
[1745345753997,0.11442364,91200.0,91186.0,0.23029699]
[1745345754208,0.11342364,91200.0,91186.0,0.23029699]
[1745345754404,0.11442364,91200.0,91186.0,0.23029699]
[1745345754602,0.11342364,91200.0,91186.0,0.23029699]
[1745345754802,0.33272207,91200.0,91186.0,0.01096659]
[1745345755927,0.01096551,91195.0,91181.0,0.21934339]
[1745345756154,0.21931507,91193.0,91177.0,0.21935139]
[1745345756370,0.0462,91192.0,91180.0,0.11436731]
[1745345756591,0.0462,91192.0,91180.0,0.33371323]
[1745345756809,0.0462,91192.0,91182.0,0.23030784]
[1745345757007,0.0462,91192.0,91183.0,0.01096695]
[1745345757935,0.0462,91192.0,91182.0,0.23030784]
[1745345758144,0.0462,91192.0,91181.0,0.01096719]
[1745345758367,0.0472,91192.0,91182.0,0.01096707]
[1745345758568,0.0472,91192.0,91181.0,0.01096719]
[1745345758983,0.0472,91192.0,91181.0,0.23030918]
[1745345758984,0.0462,91192.0,91181.0,0.23030918]
[1745345759138,0.0472,91192.0,91181.0,0.23030918]
[1745345759349,0.0472,91192.0,91182.0,0.01096707]
[1745345759532,0.0462,91192.0,91182.0,0.01096707]
[1745345760015,0.0472,91192.0,91181.0,0.23030918]
[1745345760390,0.0472,91192.0,91180.0,0.1034]
[1745345760605,0.0462,91192.0,91182.0,0.01096707]
[1745345760806,0.0472,91192.0,91181.0,0.01096719]
[1745345761033,0.0482,91192.0,91181.0,0.01096719]
[1745345761214,0.0482,91192.0,91181.0,0.23031039]
[1745345761417,0.0482,91192.0,91182.0,0.01096707]
[1745345761622,0.0472,91192.0,91181.0,0.01096719]
[1745345761857,0.0462,91192.0,91181.0,0.01096719]
[1745345762083,0.0462,91192.0,91183.0,0.01096695]
[1745345762084,0.0472,91192.0,91183.0,0.01096695]
[1745345762294,0.002,91192.0,91183.0,0.01096695]
[1745345762510,0.002,91192.0,91185.0,0.01096671]
[1745345762691,0.002,91192.0,91191.0,0.21931988]
[1745345762928,0.002,91192.0,91191.0,0.33626843]
[1745345763131,0.002,91192.0,91191.0,0.33407582]
[1745345763306,0.001,91192.0,91191.0,0.33407582]
[1745345763516,0.002,91192.0,91191.0,0.38297582]
[1745345763716,0.003,91192.0,91191.0,0.38297582]
[1745345763943,0.001,91192.0,91191.0,0.38297582]
[1745345764146,0.002,91192.0,91191.0,0.38297582]
[1745345765239,0.001,91192.0,91191.0,0.38297582]
[1745345765411,0.001,91192.0,91191.0,0.38397582]
[1745345773422,0.001,91192.0,91191.0,0.33507582]
[1745345774307,0.001,91192.0,91191.0,0.11575594]
[1745345774948,0.001,91192.0,91191.0,0.33507582]
[1745345778929,0.0008482,91216.0,91215.0,0.21926218]
[1745345779156,0.00089446,91216.0,91215.0,0.21926218]
[1745345779573,0.00089446,91216.0,91215.0,0.23259278]
[1745345780794,0.00089446,91216.0,91215.0,0.34634872]
[1745345780956,0.00489446,91216.0,91215.0,0.34734872]
[1745345781318,0.00489446,91216.0,91215.0,0.34634872]
[1745345781501,0.00589446,91216.0,91215.0,0.34634872]
[1745345781712,0.01089446,91216.0,91215.0,0.34734872]
[1745345781951,0.00589446,91216.0,91215.0,0.39684872]
[1745345782154,0.0484,91243.0,91232.0,0.21922132]
[1745345782354,0.00131071,91233.0,91232.0,0.33516903]
[1745345782558,0.00131071,91233.0,91232.0,0.33297726]
[1745345783933,0.00131071,91233.0,91232.0,0.11375594]
[1745345784165,0.00131071,91233.0,91232.0,0.11594753]
[1745345784381,0.00131071,91233.0,91232.0,0.33616885]
[1745345784591,0.00131071,91233.0,91232.0,0.33397726]
[1745345784772,0.00131071,91233.0,91232.0,0.33497726]
[1745345786051,0.00131071,91233.0,91232.0,0.74847726]
[1745345787136,0.00131071,91233.0,91232.0,0.85175726]
[1745345789870,0.00131071,91233.0,91232.0,0.89785726]
[1745345791993,0.0008482,91247.0,91237.0,0.21920931]
[1745345792196,0.0008482,91247.0,91237.0,0.74865673]
[1745345792354,0.0008482,91247.0,91237.0,0.74646525]
[1745345793137,0.000848,91253.0,91247.0,0.01095926]
[1745345793345,0.000848,91253.0,91249.0,0.33393642]
[1745345793548,0.0008498,91266.0,91249.0,0.33393642]
[1745345793549,0.0008498,91266.0,91262.0,0.21914737]
[1745345793769,0.0008498,91266.0,91265.0,0.21914205]
[1745345793895,0.00096646,91266.0,91265.0,0.33508889]
[1745345794098,0.00096646,91266.0,91265.0,0.33289799]
[1745345794477,0.00096646,91266.0,91265.0,0.74639799]
[1745345794860,0.00096646,91266.0,91265.0,0.75983447]
[1745345795263,0.00096646,91266.0,91265.0,0.76083447]
[1745345795425,0.00096646,91266.0,91265.0,0.75983447]
[1745345795631,0.00096646,91266.0,91265.0,0.76283447]
[1745345795991,0.00096646,91266.0,91265.0,0.75983447]
[1745345796226,0.00096646,91266.0,91265.0,0.54069242]
[1745345796433,0.00096646,91266.0,91265.0,0.75983447]
[1745345796761,0.00096646,91266.0,91265.0,0.76083447]
[1745345796968,1e-08,91273.0,91272.0,0.21912525]
[1745345797170,1e-08,91273.0,91272.0,0.33507192]
[1745345797375,1e-08,91273.0,91272.0,0.33288119]
[1745345798159,0.00100001,91273.0,91272.0,0.33288119]
[1745345799520,1e-08,91273.0,91272.0,0.34742204]
[1745345800793,1e-08,91273.0,91272.0,0.76092204]
[1745345801991,0.0486,91297.0,91288.0,0.21908684]
[1745345802199,0.0486,91297.0,91288.0,0.74634278]
[1745345802401,0.00504623,91289.0,91288.0,0.76088363]
[1745345803275,0.01004623,91289.0,91288.0,0.76088363]
[1745345803800,1e-08,91289.0,91288.0,0.76088363]
[1745345804124,0.00400001,91289.0,91288.0,0.76088363]
[1745345804327,0.0008476,91303.0,91302.0,0.21905325]
[1745345804540,0.0008476,91303.0,91302.0,0.33499927]
[1745345804712,0.0008476,91303.0,91302.0,0.33280919]
[1745345805270,0.0008476,91303.0,91302.0,0.34735004]
[1745345805909,0.0028476,91303.0,91302.0,0.12829679]
[1745345806110,0.0028476,91303.0,91302.0,0.34735004]
[1745345807099,0.0008476,91303.0,91302.0,0.34735004]
[1745345807327,0.0498,91318.0,91314.0,0.21902446]
[1745345807555,0.0499387,91318.0,91317.0,0.21901726]
[1745345808195,0.0499387,91318.0,91302.0,0.001]
[1745345808196,0.0509387,91318.0,91302.0,0.001]
[1745345808400,0.08895659,91316.0,91303.0,0.21905056]
[1745345808550,0.0498,91315.0,91303.0,0.21905056]
[1745345809052,0.0498,91315.0,91296.0,0.21906284]
[1745345809053,0.0498,91312.0,91289.0,0.63258424]
[1745345809259,0.38904379,91313.0,91289.0,0.63258424]
[1745345809260,0.0498,91310.0,91292.0,0.21907724]
[1745345809420,0.0498,91310.0,91289.0,0.4135]
[1745345809421,0.0498,91309.0,91290.0,0.0109541]
[1745345809625,0.0498,91309.0,91293.0,0.21907459]
[1745345810383,0.05955194,91308.0,91291.0,0.21907825]
[1745345810596,0.05955194,91308.0,91270.0,0.38904379]
[1745345810597,0.0498,91296.0,91293.0,0.01309459]
[1745345810879,0.0498,91296.0,91283.0,0.21909861]
[1745345811052,0.0498,91294.0,91281.0,0.2300583]
[1745345811219,0.0498,91294.0,91282.0,0.01095506]
[1745345811432,0.0498,91294.0,91281.0,0.2433329]
[1745345811677,0.0498,91294.0,91281.0,0.02422935]
[1745345811892,0.0498,91294.0,91283.0,0.21909661]
[1745345812109,0.0498,91294.0,91283.0,0.01095494]
[1745345812305,0.0498,91294.0,91284.0,0.23005036]
[1745345812500,0.0498,91294.0,91283.0,0.2300532]
[1745345812707,0.0498,91294.0,91281.0,0.01327417]
[1745345812913,0.0498,91288.0,91265.0,0.21914012]
[1745345813140,0.0498,91288.0,91244.0,0.26302613]
[1745345813141,0.0498,91279.0,91277.0,0.0134379]
[1745345813309,0.0498,91279.0,91265.0,0.0109571]
[1745345813520,0.06075542,91279.0,91263.0,0.4135]
[1745345813735,0.0486,91278.0,91265.0,0.01349468]
[1745345813930,0.0486,91278.0,91263.0,0.4135]
[1745345814095,0.0486,91278.0,91263.0,0.42445734]
[1745345814291,0.0486,91278.0,91263.0,0.64364932]
[1745345814506,0.0486,91278.0,91264.0,0.01095722]
[1745345814709,0.0486,91278.0,91264.0,0.24358031]
[1745345815080,0.0486,91278.0,91265.0,0.23009911]
[1745345815417,0.0486,91278.0,91264.0,0.02443605]
[1745345815619,0.0486,91278.0,91264.0,0.24357831]
[1745345815752,0.0486,91278.0,91265.0,0.0109571]
[1745345816458,0.0486,91278.0,91264.0,0.02543605]
[1745345817056,0.0492,91271.0,91264.0,0.01547883]
[1745345817378,0.01095686,91267.0,91264.0,0.002]
[1745345817557,0.0492,91266.0,91264.0,0.001]
[1745345817940,0.0492,91266.0,91264.0,0.01411572]
[1745345818645,0.0492,91266.0,91264.0,0.01311572]
[1745345818854,0.0492,91266.0,91263.0,4.623e-05]
[1745345819407,0.0532,91266.0,91263.0,4.623e-05]
[1745345819615,0.0582,91266.0,91263.0,4.623e-05]
[1745345820146,0.0532,91266.0,91263.0,4.623e-05]
[1745345820316,0.0532,91266.0,91263.0,0.01250851]
[1745345820525,0.0582,91266.0,91263.0,0.01250851]
[1745345820941,0.0542,91266.0,91263.0,0.01250851]
[1745345821502,0.0542,91266.0,91264.0,0.21914302]
[1745345821722,0.008,91266.0,91264.0,0.21914302]
[1745345821952,0.008,91266.0,91265.0,0.11375594]
[1745345822395,0.005,91266.0,91265.0,0.11375594]
[1745345822595,0.0492,91284.0,91274.0,0.01095602]
[1745345823142,0.43824379,91284.0,91249.0,0.2191782]
[1745345823348,0.21910052,91283.0,91262.0,0.01095746]
[1745345823655,0.003,91266.0,91263.0,0.01250851]
[1745345823857,0.003,91266.0,91263.0,0.24261106]
[1745345824059,0.003,91266.0,91264.0,0.21914409]
[1745345824227,0.003,91266.0,91263.0,0.24261106]
[1745345824795,0.005,91266.0,91264.0,0.21914446]
[1745345825099,0.003,91266.0,91265.0,0.21914205]
[1745345825300,0.23005843,91282.0,91265.0,0.21914205]
[1745345825301,0.23005843,91282.0,91266.0,0.01095698]
[1745345826158,0.23005843,91282.0,91267.0,0.01095686]
[1745345826395,0.23005843,91282.0,91265.0,0.001]
[1745345826396,0.01095614,91273.0,91265.0,0.001]
[1745345826618,0.01095674,91268.0,91265.0,0.001]
[1745345826744,0.01095674,91268.0,91263.0,4.623e-05]
[1745345826745,0.23009195,91268.0,91263.0,4.623e-05]
[1745345826955,0.01095674,91268.0,91263.0,4.623e-05]
[1745345827216,0.23009378,91269.0,91266.0,0.001]
[1745345827560,0.2299281,91269.0,91266.0,0.001]
[1745345827754,0.23008619,91271.0,91266.0,0.001]
[1745345828107,0.01095662,91269.0,91266.0,0.001]
[1745345828315,0.31634446,91264.0,91263.0,4.623e-05]
[1745345828452,0.4301004,91264.0,91263.0,4.623e-05]
[1745345829462,0.4301004,91264.0,91227.0,0.52754166]
[1745345829463,0.21921964,91233.0,91227.0,0.4135]
[1745345829706,0.0492,91236.0,91231.0,0.00511666]
[1745345830466,0.0492,91236.0,91231.0,0.01770682]
[1745345831394,0.0512,91236.0,91231.0,0.01770682]
[1745345832636,0.21922013,91233.0,91231.0,0.00511666]
[1745345832827,0.0512,91236.0,91231.0,0.00511666]
[1745345832960,0.0542,91236.0,91231.0,0.01803089]
[1745345833640,0.21922132,91232.0,91231.0,0.00511666]
[1745345833849,0.003,91233.0,91231.0,0.00511666]
[1745345834917,0.003,91233.0,91232.0,0.00219205]
[1745345835137,0.007,91233.0,91232.0,0.11594799]
[1745345835363,0.007,91233.0,91232.0,0.53044799]
[1745345835364,0.004,91233.0,91232.0,0.53044799]
[1745345835561,0.004,91233.0,91232.0,0.52825594]
[1745345835846,0.00809398,91260.0,91249.0,0.01095902]
[1745345835989,0.00809398,91260.0,91239.0,0.21920441]
[1745345835990,0.09991141,91284.0,91261.0,0.01095758]
[1745345836190,0.0492,91275.0,91265.0,0.21914042]
[1745345836444,0.0492,91275.0,91266.0,0.01095698]
[1745345836630,0.0492,91275.0,91268.0,0.01095674]
[1745345836833,0.0492,91275.0,91267.0,0.21913657]
[1745345836834,0.0492,91275.0,91267.0,0.23009343]
[1745345837042,0.0601559,91275.0,91258.0,0.21915712]
[1745345837275,0.01095686,91267.0,91251.0,0.01095878]
[1745345837476,0.01095662,91269.0,91256.0,0.00011666]
[1745345837854,0.2300894,91269.0,91256.0,0.00011666]
[1745345838051,0.0109571,91265.0,91256.0,0.00011666]
[1745345838258,0.01095698,91266.0,91256.0,0.00011666]
[1745345838855,0.23009226,91268.0,91256.0,0.00011666]
[1745345839248,0.004,91265.0,91256.0,0.00011666]
[1745345839661,0.01095686,91267.0,91256.0,0.00011666]
[1745345840062,0.01095782,91259.0,91256.0,0.00011666]
[1745345840473,0.23011512,91259.0,91256.0,0.00011666]
[1745345840670,0.21916126,91257.0,91256.0,0.00011666]
[1745345841637,0.01095782,91259.0,91256.0,0.00011666]
[1745345841815,0.01095758,91261.0,91256.0,0.00011666]
[1745345842030,0.23011071,91261.0,91256.0,0.00011666]
[1745345842230,0.003,91259.0,91256.0,0.00011666]
[1745345842438,0.21916126,91257.0,91256.0,0.00011666]
[1745345842663,0.22316126,91257.0,91256.0,0.00011666]
[1745345842872,0.004,91257.0,91256.0,0.00011666]
[1745345843079,0.21916126,91257.0,91256.0,0.00011666]
[1745345843270,0.26836126,91257.0,91256.0,0.00011666]
[1745345843860,0.31936126,91257.0,91256.0,0.00011666]
[1745345844888,0.4381172,91257.0,91256.0,0.00011666]
[1745345845312,0.5381172,91257.0,91256.0,0.00011666]
[1745345845672,0.5341172,91257.0,91256.0,0.00011666]
[1745345845991,0.8741172,91257.0,91256.0,0.00011666]
[1745345846196,0.8781172,91257.0,91256.0,0.00011666]
[1745345846529,0.8741172,91257.0,91256.0,0.00011666]
[1745345847140,0.8711172,91257.0,91256.0,0.00011666]
[1745345847341,0.8731172,91257.0,91256.0,0.00011666]
[1745345847545,0.8711172,91257.0,91256.0,0.00011666]
[1745345847808,0.8831172,91257.0,91256.0,0.00111666]
[1745345848024,0.8921172,91257.0,91256.0,0.00211666]
[1745345848670,0.21921892,91233.0,91231.0,0.005]
[1745345849366,0.26431652,91234.0,91231.0,0.005]
[1745345849585,0.0451,91234.0,91231.0,0.005]
[1745345849771,0.21921892,91233.0,91231.0,0.005]
[1745345850315,0.22421892,91233.0,91231.0,0.005]
[1745345850511,0.008,91233.0,91231.0,0.005]
[1745345850774,0.22721892,91233.0,91231.0,0.005]
[1745345851143,0.21922132,91232.0,91231.0,0.005]
[1745345851763,0.26722132,91232.0,91231.0,0.005]
[1745345852410,0.76607726,91232.0,91231.0,0.005]
[1745345852568,0.76707726,91232.0,91231.0,0.006]
[1745345852771,0.86707726,91232.0,91231.0,0.006]
[1745345852995,0.86707726,91232.0,91231.0,0.005]
[1745345853421,0.87507726,91232.0,91231.0,0.006]
[1745345854240,0.88407726,91232.0,91231.0,0.007]
[1745345854620,0.53607726,91232.0,91231.0,0.006]
[1745345855019,0.54707726,91232.0,91231.0,0.007]
[1745345857251,0.88707726,91232.0,91231.0,0.007]
[1745345859654,0.88707726,91232.0,91219.0,0.0004235]
[1745345859655,0.65235016,91220.0,91219.0,0.0004235]
[1745345859935,0.7661061,91220.0,91219.0,0.0004235]
[1745345860498,0.3781061,91220.0,91219.0,0.0004235]
[1745345860896,0.3851061,91220.0,91219.0,0.0014235]
[1745345861099,0.3851061,91220.0,91219.0,0.00188621]
[1745345861307,0.3901061,91220.0,91219.0,0.00288621]
[1745345868026,1.30505815,91220.0,91219.0,0.00288621]
[1745345868233,1.2913061,91220.0,91219.0,0.00288621]
[1745345869203,1.2913061,91220.0,91219.0,0.00188621]
[1745345869415,1.2863061,91220.0,91219.0,0.00188621]
[1745345869622,1.2793061,91220.0,91219.0,0.00088621]
[1745345869835,1.2843061,91220.0,91219.0,0.00188621]
[1745345870071,0.9021061,91220.0,91219.0,0.00288621]
[1745345870295,0.9021061,91220.0,91219.0,0.00188621]
[1745345870296,0.8520061,91220.0,91219.0,0.00188621]
[1745345870523,0.4400061,91220.0,91219.0,0.00188621]
[1745345870963,0.4480061,91220.0,91219.0,0.00188621]
[1745345871233,0.60244258,91220.0,91219.0,0.00188621]
[1745345871722,0.5466061,91220.0,91219.0,0.00188621]
[1745345872774,0.8866061,91220.0,91219.0,0.00188621]
[1745345872977,0.8876061,91220.0,91219.0,0.00188621]
[1745345874254,0.8876061,91220.0,91201.0,0.005]
[1745345874255,0.60869343,91202.0,91201.0,0.005]
[1745345874476,0.87164937,91202.0,91201.0,0.005]
[1745345875823,0.87764937,91202.0,91201.0,0.005]
[1745345876025,0.87164937,91202.0,91201.0,0.005]
[1745345876445,0.87964937,91202.0,91201.0,0.005]
[1745345876826,0.88864937,91202.0,91201.0,0.005]
[1745345877387,0.88766666,91202.0,91201.0,0.005]
[1745345877698,0.89666666,91202.0,91201.0,0.005]
[1745345878776,1.02312819,91202.0,91201.0,0.005]
[1745345878992,0.90937614,91202.0,91201.0,0.005]
[1745345879210,0.01096695,91183.0,91167.0,0.21937286]
[1745345879436,0.60839078,91180.0,91159.0,0.0004237]
[1745345879585,0.23032187,91177.0,91167.0,0.0130633]
[1745345879792,0.00239871,91176.0,91159.0,0.0004237]
[1745345879992,0.00239871,91176.0,91160.0,0.01096972]
[1745345880188,0.00239871,91176.0,91161.0,0.0109696]
[1745345880390,0.02072677,91202.0,91167.0,0.01296888]
[1745345880391,0.002,91183.0,91167.0,0.01296888]
[1745345880593,0.002,91183.0,91172.0,0.05686827]
[1745345880816,0.00239871,91194.0,91178.0,0.01096755]
[1745345881025,0.23027139,91197.0,91176.0,0.01096779]
[1745345881247,0.01096611,91190.0,91173.0,0.21936318]
[1745345881468,0.01096635,91188.0,91172.0,0.0459]
[1745345881670,0.21933222,91186.0,91172.0,0.0459]
[1745345881964,0.001,91183.0,91172.0,0.0459]
[1745345882386,0.001,91183.0,91168.0,0.01096876]
[1745345882582,0.001,91183.0,91171.0,0.21936777]
[1745345883016,0.23031193,91181.0,91167.0,0.001]
[1745345883189,0.23031193,91181.0,91167.0,0.0003]
[1745345883190,0.21934634,91180.0,91167.0,0.0003]
[1745345883424,0.01096755,91178.0,91167.0,0.0003]
[1745345883571,0.62005971,91181.0,91167.0,0.0023]
[1745345883572,0.38974379,91181.0,91167.0,0.0023]
[1745345883774,0.38974379,91181.0,91168.0,0.21937499]
[1745345883942,0.0007,91181.0,91172.0,0.001]
[1745345884351,0.0007,91181.0,91167.0,0.21967745]
[1745345884652,0.0007,91181.0,91167.0,0.0023]
[1745345884653,0.0017,91181.0,91167.0,0.0023]
[1745345884895,0.0017,91181.0,91172.0,0.21936559]
[1745345885097,0.0017,91181.0,91170.0,0.01096852]
[1745345885298,0.0017,91181.0,91180.0,0.21934634]
[1745345886011,0.0017,91181.0,91180.0,0.22153962]
[1745345886267,0.0027,91181.0,91180.0,0.26743962]
[1745345886465,0.0017,91181.0,91180.0,0.37900228]
[1745345886599,0.0007,91181.0,91180.0,0.37900228]
[1745345886803,0.0017,91181.0,91180.0,0.38000228]
[1745345887208,0.0007,91181.0,91180.0,0.42780228]
[1745345887640,0.0017,91181.0,91180.0,0.42880228]
[1745345888458,0.0017,91181.0,91180.0,0.32780228]
[1745345888662,0.08895659,91212.0,91200.0,0.05686491]
[1745345888837,0.08895659,91212.0,91205.0,0.21928541]
[1745345889042,0.08895659,91212.0,91203.0,0.21929103]
[1745345889939,0.08895659,91212.0,91203.0,0.21933729]
[1745345890345,0.08995659,91212.0,91205.0,0.21928589]
[1745345890598,0.09295659,91212.0,91205.0,0.21928589]
[1745345890739,0.09295659,91212.0,91203.0,0.00104626]
[1745345890948,0.09295659,91212.0,91204.0,0.21928862]
[1745345891370,0.08995659,91212.0,91204.0,0.21928862]
[1745345891576,0.08895659,91212.0,91205.0,0.21928484]
[1745345891862,0.08895659,91212.0,91204.0,0.23181464]
[1745345892059,0.09195659,91212.0,91205.0,0.001]
[1745345892449,0.09295659,91212.0,91205.0,0.001]
[1745345892652,0.00239871,91211.0,91205.0,0.001]
[1745345893314,0.00239871,91211.0,91203.0,4.626e-05]
[1745345893681,0.004,91212.0,91203.0,0.01217598]
[1745345893932,0.004,91212.0,91204.0,0.21928696]
[1745345894139,0.002,91212.0,91203.0,4.626e-05]